fUST/lending_fUST_20250803
["ID","MTS","AMOUNT","RATE_DAILY","PERIOD"]
[376914929,1754163040537,-460.0,0.00026849,10]
[376914931,1754163040546,-561.97,0.00026849,10]
[376914933,1754163040555,-575.97609992,0.00026849,10]
[376914935,1754163040564,-460.0,0.00026849,10]
[376914946,1754163040684,-233.21,0.00026849,10]
[376914947,1754163040695,-460.0,0.00026849,10]
[376914948,1754163040704,-460.0,0.00026849,10]
[376914951,1754163040714,-460.0,0.00026849,10]
[376914953,1754163040724,-176.92246929,0.00026849,10]
[376914955,1754163040733,-281.0,0.00026849,10]
[376914957,1754163040742,-460.0,0.00026849,10]
[376914959,1754163040752,-460.0,0.00026849,10]
[376914961,1754163040761,-460.0,0.00026849,10]
[376914963,1754163040770,-460.0,0.00026849,10]
[376914965,1754163040781,-281.35022618,0.00026849,10]
[376914966,1754163040790,-460.0,0.00026849,10]
[376914967,1754163040800,-460.0,0.00026849,10]
[376914969,1754163040809,-464.40404272,0.00026849,10]
[376914971,1754163040818,-460.0,0.00026849,10]
[376914973,1754163040827,-460.0,0.00026849,10]
[376914975,1754163040840,-460.0,0.00026849,10]
[376914977,1754163040849,-316.47,0.00026849,10]
[376914979,1754163040858,-460.0,0.00026849,10]
[376914981,1754163040867,-460.0,0.00026849,10]
[376914982,1754163040876,-460.0,0.00026849,10]
[376914983,1754163040886,-460.0,0.00026849,10]
[376914985,1754163040895,-460.0,0.00026849,10]
[376914987,1754163040906,-460.0,0.00026849,10]
[376914989,1754163040916,-460.0,0.00026849,10]
[376914991,1754163040926,-460.0,0.00026849,10]
[376914993,1754163040936,-460.0,0.00026849,10]
[376914995,1754163040946,-450.33,0.00026849,10]
[376914996,1754163040956,-413.02535462,0.00026849,10]
[376914998,1754163040965,-460.0,0.00026849,10]
[376915000,1754163040974,-460.0,0.00026849,10]
[376915002,1754163040984,-460.0,0.00026849,10]
[376915003,1754163040993,-460.0,0.00026849,10]
[376915004,1754163041003,-460.0,0.00026849,10]
[376915005,1754163041012,-460.0,0.00026849,10]
[376915006,1754163041022,-460.0,0.00026849,10]
[376915007,1754163041031,-460.0,0.00026849,10]
[376915008,1754163041040,-462.25730716,0.00026849,10]
[376915009,1754163041049,-460.0,0.00026849,10]
[376915010,1754163041058,-460.0,0.00026849,10]
[376915011,1754163041068,-460.0,0.00026849,10]
[376915012,1754163041077,-460.0,0.00026849,10]
[376915013,1754163041086,-460.0,0.00026849,10]
[376915014,1754163041096,-460.0,0.00026849,10]
[376915015,1754163041105,-460.0,0.00026849,10]
[376915016,1754163041114,-500.0,0.00026849,10]
[376915017,1754163041123,-500.0,0.00026849,10]
[376915018,1754163041132,-460.0,0.00026849,10]
[376915019,1754163041141,-460.0,0.00026849,10]
[376915020,1754163041151,-460.0,0.00026849,10]
[376915021,1754163041160,-460.0,0.00026849,10]
[376915022,1754163041170,-311.31834107,0.00026849,10]
[376915023,1754163041179,-460.0,0.00026849,10]
[376915024,1754163041188,-460.0,0.00026849,10]
[376915025,1754163041197,-460.0,0.00026849,10]
[376915026,1754163041206,-460.0,0.00026849,10]
[376915027,1754163041215,-460.0,0.00026849,10]
[376915028,1754163041225,-460.0,0.00026849,10]
[376915029,1754163041234,-460.0,0.00026849,10]
[376915030,1754163041243,-460.0,0.00026849,10]
[376915031,1754163041252,-460.0,0.00026849,10]
[376915032,1754163041261,-460.0,0.00026849,10]
[376915033,1754163041270,-460.0,0.00026849,10]
[376915034,1754163041279,-460.0,0.00026849,10]
[376915035,1754163041290,-460.0,0.00026849,10]
[376915036,1754163041300,-460.0,0.00026849,10]
[376915037,1754163041310,-460.0,0.00026849,10]
[376915038,1754163041319,-460.0,0.00026849,10]
[376915039,1754163041328,-460.0,0.00026849,10]
[376915040,1754163041337,-460.0,0.00026849,10]
[376915041,1754163041347,-460.0,0.00026849,10]
[376915042,1754163041356,-460.0,0.00026849,10]
[376915043,1754163041365,-460.0,0.00026849,10]
[376915044,1754163041374,-460.0,0.00026849,10]
[376915045,1754163041383,-462.63058886,0.00026849,10]
[376915046,1754163041392,-460.0,0.00026849,10]
[376915047,1754163041401,-460.0,0.00026849,10]
[376915048,1754163041411,-460.0,0.00026849,10]
[376915049,1754163041420,-460.0,0.00026849,10]
[376915050,1754163041429,-460.0,0.00026849,10]
[376915051,1754163041438,-460.0,0.00026849,10]
[376915052,1754163041448,-460.0,0.00026849,10]
[376915053,1754163041457,-460.0,0.00026849,10]
[376915054,1754163041466,-231.35,0.00026849,10]
[376915055,1754163041475,-462.78358028,0.00026849,10]
[376915056,1754163041484,-460.0,0.00026849,10]
[376915057,1754163041493,-460.0,0.00026849,10]
[376915058,1754163041502,-460.0,0.00026849,10]
[376915059,1754163041512,-460.0,0.00026849,10]
[376915060,1754163041521,-460.0,0.00026849,10]
[376915061,1754163041531,-460.0,0.00026849,10]
[376915062,1754163041540,-460.0,0.00026849,10]
[376915063,1754163041549,-465.09,0.00026849,10]
[376915064,1754163041559,-460.0,0.00026849,10]
[376915065,1754163041568,-460.0,0.00026849,10]
[376915066,1754163041577,-460.0,0.00026849,10]
[376915067,1754163041587,-460.0,0.00026849,10]
[376915068,1754163041596,-460.0,0.00026849,10]
[376915069,1754163041606,-460.0,0.00026849,10]
[376915070,1754163041615,-378.17291375,0.00026849,10]
[376915071,1754163041624,-460.0,0.00026849,10]
[376915072,1754163041634,-332.06771618,0.00026849,10]
[376915073,1754163041645,-460.0,0.00026849,10]
[376915074,1754163041655,-151.0,0.00026849,2]
[376915075,1754163041664,-460.0,0.00026849,10]
[376915076,1754163041674,-460.0,0.00026849,10]
[376915077,1754163041683,-460.0,0.00026849,10]
[376915078,1754163041694,-514.86,0.00026849,10]
[376915079,1754163041703,-460.0,0.00026849,10]
[376915080,1754163041713,-578.02383621,0.00026849,10]
[376915081,1754163041723,-460.0,0.00026849,10]
[376915082,1754163041732,-460.0,0.00026849,10]
[376915083,1754163041742,-201.39752897,0.00026849,10]
[376915084,1754163041765,-258.60247103,0.00026849,10]
[376915085,1754163041774,-408.39005882,0.00026849,10]
[376915086,1754163041784,-151.0,0.00026849,10]
[376915087,1754163041794,-460.0,0.00026849,10]
[376915088,1754163041803,-460.0,0.00026849,10]
[376915089,1754163041813,-460.0,0.00026849,10]
[376915090,1754163041823,-424.46815538,0.00026849,10]
[376915091,1754163041836,-460.0,0.00026849,10]
[376915092,1754163041846,-460.0,0.00026849,10]
[376915093,1754163041855,-460.0,0.00026849,10]
[376915094,1754163041865,-460.0,0.00026849,10]
[376915095,1754163041876,-460.0,0.00026849,10]
[376915096,1754163041885,-460.0,0.00026849,10]
[376915097,1754163041895,-460.0,0.00026849,10]
[376915098,1754163041904,-460.0,0.00026849,10]
[376915099,1754163041914,-437.62393445,0.00026849,10]
[376915100,1754163041923,-360.9,0.00026849,10]
[376915101,1754163041933,-460.0,0.00026849,10]
[376915102,1754163041943,-460.0,0.00026849,10]
[376915103,1754163041952,-460.0,0.00026849,10]
[376915104,1754163041961,-460.0,0.00026849,10]
[376915105,1754163041971,-460.0,0.00026849,10]
[376915106,1754163041980,-460.0,0.00026849,10]
[376915107,1754163041990,-278.13446505,0.00026849,10]
[376915108,1754163042000,-460.0,0.00026849,10]
[376915109,1754163042010,-500.0,0.00026864,2]
[376915110,1754163042019,-500.0,0.00026873,2]
[376915111,1754163042029,-524.81598164,0.00026873,2]
[376915112,1754163042039,-501.62948415,0.00026873,2]
[376915113,1754163042048,-500.0,0.00026873,2]
[376915114,1754163042061,-500.0,0.00026873,2]
[376915115,1754163042072,-500.0,0.00026873,2]
[376915116,1754163042082,-603.04606103,0.00026873,2]
[376915117,1754163042091,-501.01943038,0.00026873,2]
[376915118,1754163042101,-505.44698061,0.00026873,2]
[376915119,1754163042110,-500.0,0.00026873,2]
[376915120,1754163042119,-500.0,0.00026873,2]
[376915121,1754163042128,-500.0,0.00026873,2]
[376915122,1754163042138,-500.0,0.00026873,2]
[376915123,1754163042147,-500.0,0.00026873,2]
[376915124,1754163042157,-500.0,0.00026873,2]
[376915125,1754163042165,-973.90504078,0.000269,2]
[376915126,1754163042174,-500.0,0.00026942,2]
[376915127,1754163042183,-500.99632607,0.00026973,2]
[376915128,1754163042193,-500.0,0.00026973,2]
[376915129,1754163042204,-460.0,0.00026989,10]
[376915130,1754163042214,-339.21,0.00026989,10]
[376915131,1754163042225,-460.0,0.00026989,10]
[376915132,1754163042234,-196.92,0.00026989,10]
[376915133,1754163042244,-590.1715762,0.00026989,10]
[376915134,1754163042253,-477.12245307,0.00026989,10]
[376915135,1754163042264,-500.0,0.00026989,10]
[376915136,1754163042274,-460.0,0.00026989,10]
[376915137,1754163042283,-460.0,0.00026989,10]
[376915138,1754163042292,-460.0,0.00026989,10]
[376915139,1754163042302,-460.0,0.00026989,10]
[376915140,1754163042313,-62928.43824622,0.0002699,2]
[376915141,1754163042322,-226.8911042,0.0002699,2]
[376915142,1754163042331,-460.0,0.00026998,10]
[376915143,1754163042340,-171.62877424,0.00026998,10]
[376915144,1754163042350,-460.0,0.00026998,10]
[376915145,1754163042360,-601.47430154,0.00026998,10]
[376915146,1754163042370,-460.0,0.00026998,10]
[376915147,1754163042379,-460.0,0.00026998,10]
[376915148,1754163042388,-207.48422444,0.00026999,2]
[376915149,1754163042398,-460.0,0.00026999,10]
[376915150,1754163042407,-210.97495906,0.00026999,10]
[376915151,1754163042416,-460.0,0.00026999,10]
[376915152,1754163042425,-460.0,0.00026999,10]
[376915153,1754163042434,-460.0,0.00026999,10]
[376915154,1754163042443,-460.0,0.00026999,10]
[376915155,1754163042451,-396.18,0.00026999,10]
[376915156,1754163042461,-460.0,0.00026999,10]
[376915157,1754163042470,-268.22,0.00026999,10]
[376915158,1754163042479,-460.0,0.00026999,10]
[376915159,1754163042489,-460.0,0.00026999,10]
[376915160,1754163042498,-338.72,0.00026999,10]
[376915161,1754163042507,-348.73659615,0.00027,2]
[376915162,1754163042518,-7696.98440007,0.00027,2]
[376915163,1754163042527,-1911.9,0.00027,7]
[376915164,1754163042537,-953.32,0.00027,7]
[376915165,1754163042546,-460.0,0.00027,2]
[376915166,1754163042555,-151.0,0.00027,7]
[376915167,1754163042568,-151.0,0.00027,7]
[376915168,1754163042577,-151.0,0.00027,7]
[376915169,1754163042586,-151.0,0.00027,7]
[376915170,1754163042595,-299.119146,0.00027,7]
[376915171,1754163042605,-152.78858,0.00027,7]
[376915172,1754163042614,-437.38574406,0.00027,2]
[376915173,1754163042623,-1749.54297623,0.00027,2]
[376915174,1754163042632,-435.75317365,0.00027,2]
[376915175,1754163042641,-151.0,0.00027,7]
[376915177,1754163042651,-151.0,0.00027,7]
[376915179,1754163042660,-409.963346,0.00027,7]
[376915180,1754163042669,-409.963346,0.00027,7]
[376915181,1754163042679,-153.586054,0.00027,7]
[376915182,1754163042688,-151.0,0.00027,7]
[376915183,1754163042697,-151.0,0.00027,7]
[376915184,1754163042706,-151.0,0.00027,7]
[376915185,1754163042715,-151.0,0.00027,7]
[376915186,1754163042724,-151.0,0.00027,7]
[376915187,1754163042734,-151.0,0.00027,7]
[376915188,1754163042743,-84018.97,0.00027,2]
[376915189,1754163042752,-151.0,0.00027,7]
[376915190,1754163042761,-151.0,0.00027,7]
[376915191,1754163042771,-151.0,0.00027,7]
[376915192,1754163042780,-213385.22354658,0.00027,2]
[376915193,1754163042810,-460.0,0.00026849,10]
[376915194,1754163042819,-460.0,0.00026849,10]
[376915195,1754163042829,-58473.71634493,0.00027,2]
[376915196,1754163042844,-11256.99999999,0.00027,2]
[376915197,1754163042859,-112059.99999999,0.00027,2]
[376915306,1754163046362,-385.1132484,0.00025859,2]
[376915316,1754163129238,158.0,0.00022,2]
[376915317,1754163130164,158.0,0.00023014,7]
[376915319,1754163828621,161.318637,0.00013699,2]
[376915323,1754163951699,-300.0,0.00023397,2]
[376915324,1754163951720,-300.0,0.00023397,2]
[376915325,1754163951741,-300.0,0.00023397,2]
[376915326,1754163951762,-1185.17658904,0.00023397,2]
[376915327,1754163975614,1516.33342166,0.00027831,40]
[376915328,1754163984220,3735.67288897,0.00023061,2]
[376915329,1754164031094,-14.82341096,0.00023397,2]
[376915330,1754164031114,-1200.0,0.00023397,2]
[376915331,1754164031134,-300.0,0.00023397,2]
[376915332,1754164031156,-233.57926834,0.00023398,2]
[376915333,1754164158248,-300.0,0.00023148,2]
[376915334,1754164158273,-217.38867448,0.00023149,2]
[376915339,1754164232473,-342.3699,0.00023148,2]
[376915340,1754164232489,-168.6301,0.00023148,2]
[376915341,1754164232499,-149.8081,0.00023149,2]
[376915342,1754164232526,-3569.27492203,0.00023149,2]
[376915343,1754164232537,-1046.34655667,0.00023149,2]
[376915722,1754164238343,-5944.82717634,0.00023149,2]
[376915725,1754164238358,-1743.0126946,0.00023149,2]
[376915727,1754164238371,-1744.99633683,0.00023149,2]
[376915729,1754164238382,-365.7867,0.00023149,2]
[376915731,1754164238395,-886.7462414,0.00023149,2]
[376915733,1754164238406,-920.32750606,0.00023149,2]
[376915735,1754164238415,-228.271976,0.00023242,2]
[376915737,1754164238425,-2805.82147381,0.00023398,2]
[376915739,1754164238436,-475.9999938,0.00023398,2]
[376915742,1754164238447,-1035.32702355,0.00023398,2]
[376915744,1754164238458,-528.78757581,0.00023398,2]
[376915746,1754164238469,-776.7065474,0.00023398,2]
[376915748,1754164238481,-3504.59827245,0.00023398,2]
[376915752,1754164238508,-15539.17984484,0.00023398,2]
[376915755,1754164238518,-267.70764673,0.00023967,2]
[376915757,1754164238527,-174.54,0.00024267,6]
[376915759,1754164238536,-200.0,0.00024306,15]
[376915761,1754164238545,-300.0,0.00024306,15]
[376915763,1754164238554,-35486.7309614,0.00024306,2]
[376915765,1754164238565,-460.0,0.00024368,2]
[376915768,1754164238575,-23556.0012029,0.00024429,2]
[376915770,1754164238584,-1754.0,0.00025023,3]
[376915772,1754164238593,-500.0,0.00025063,2]
[376915774,1754164238603,-500.0,0.00025063,2]
[376915776,1754164238612,-500.0,0.00025063,2]
[376915778,1754164238621,-500.0,0.00025063,2]
[376915780,1754164238630,-500.0,0.00025063,2]
[376915782,1754164238639,-500.0,0.00025063,2]
[376915784,1754164238648,-500.0,0.00025063,2]
[376915786,1754164238657,-500.0,0.00025063,2]
[376915788,1754164238666,-500.0,0.00025063,2]
[376915790,1754164238675,-500.0,0.00025063,2]
[376915792,1754164238685,-500.0,0.00025063,2]
[376915794,1754164238694,-500.0,0.00025063,2]
[376915796,1754164238703,-500.0,0.00025063,2]
[376915798,1754164238712,-500.0,0.00025063,2]
[376915799,1754164238721,-500.0,0.00025063,2]
[376915801,1754164238730,-357.6099415,0.00025063,2]
[376915803,1754164238739,-500.0,0.00025063,2]
[376915805,1754164238749,-500.0,0.00025063,2]
[376915807,1754164238758,-500.0,0.00025063,2]
[376915809,1754164238767,-568.00531179,0.00025063,2]
[376915811,1754164238777,-500.0,0.00025063,2]
[376915813,1754164238786,-500.0,0.00025063,2]
[376915815,1754164238795,-500.0,0.00025063,2]
[376915817,1754164238805,-500.0,0.00025063,2]
[376915819,1754164238816,-500.0,0.00025063,2]
[376915821,1754164238826,-636.34114807,0.00025063,2]
[376915823,1754164238835,-500.0,0.00025063,2]
[376915825,1754164238845,-500.0,0.00025063,2]
[376915827,1754164238854,-168.0252034,0.00025063,2]
[376915829,1754164238863,-500.0,0.00025063,2]
[376915831,1754164238873,-500.0,0.00025063,2]
[376915833,1754164238891,-500.0,0.00025063,2]
[376915835,1754164238901,-500.0,0.00025063,2]
[376915837,1754164238910,-500.0,0.00025063,2]
[376915839,1754164238920,-261.0399485,0.00025063,2]
[376915841,1754164238929,-500.0,0.00025063,2]
[376915843,1754164238939,-500.0,0.00025063,2]
[376915845,1754164238949,-500.0,0.00025063,2]
[376915847,1754164238958,-500.0,0.00025063,2]
[376915849,1754164238968,-500.0,0.00025063,2]
[376915851,1754164238978,-500.0,0.00025063,2]
[376915853,1754164238987,-500.0,0.00025063,2]
[376915855,1754164238997,-500.0,0.00025063,2]
[376915857,1754164239007,-500.0,0.00025063,2]
[376915860,1754164239017,-500.0,0.00025063,2]
[376915862,1754164239027,-500.0,0.00025063,2]
[376915864,1754164239037,-500.0,0.00025063,2]
[376915866,1754164239047,-500.0,0.00025063,2]
[376915868,1754164239056,-500.0,0.00025063,2]
[376915870,1754164239067,-500.0,0.00025063,2]
[376915872,1754164239077,-500.0,0.00025063,2]
[376915874,1754164239086,-500.0,0.00025063,2]
[376915876,1754164239096,-500.0,0.00025063,2]
[376915878,1754164239105,-500.0,0.00025063,2]
[376915880,1754164239114,-500.0,0.00025063,2]
[376915882,1754164239123,-500.0,0.00025063,2]
[376915884,1754164239134,-500.0,0.00025063,2]
[376915886,1754164239143,-500.0,0.00025063,2]
[376915888,1754164239152,-500.0,0.00025063,2]
[376915890,1754164239161,-500.0,0.00025063,2]
[376915892,1754164239170,-500.0,0.00025063,2]
[376915894,1754164239180,-500.0,0.00025063,2]
[376915896,1754164239190,-500.0,0.00025063,2]
[376915898,1754164239199,-500.0,0.00025063,2]
[376915900,1754164239208,-555.61016545,0.00025063,2]
[376915902,1754164239218,-500.0,0.00025063,2]
[376915904,1754164239227,-500.0,0.00025063,2]
[376915906,1754164239237,-500.0,0.00025063,2]
[376915908,1754164239246,-500.0,0.00025063,2]
[376915910,1754164239256,-500.0,0.00025063,2]
[376915912,1754164239265,-500.0,0.00025063,2]
[376915914,1754164239274,-500.0,0.00025063,2]
[376915916,1754164239286,-500.0,0.00025063,2]
[376915918,1754164239295,-500.0,0.00025063,2]
[376915920,1754164239304,-500.0,0.00025063,2]
[376915922,1754164239314,-500.0,0.00025063,2]
[376915924,1754164239323,-500.0,0.00025063,2]
[376915926,1754164239332,-168.37030778,0.00025063,2]
[376915928,1754164239341,-500.0,0.00025063,2]
[376915930,1754164239351,-500.0,0.00025063,2]
[376915932,1754164239360,-500.0,0.00025063,2]
[376915934,1754164239370,-500.0,0.00025063,2]
[376915936,1754164239379,-500.0,0.00025063,2]
[376915938,1754164239388,-500.0,0.00025063,2]
[376915939,1754164239397,-500.0,0.00025063,2]
[376915941,1754164239406,-500.0,0.00025063,2]
[376915943,1754164239415,-500.0,0.00025063,2]
[376915945,1754164239425,-500.0,0.00025063,2]
[376915947,1754164239435,-500.0,0.00025063,2]
[376915949,1754164239444,-500.0,0.00025063,2]
[376915951,1754164239453,-500.0,0.00025063,2]
[376915953,1754164239462,-500.0,0.00025063,2]
[376915955,1754164239471,-500.0,0.00025063,2]
[376915957,1754164239480,-500.0,0.00025063,2]
[376915959,1754164239494,-500.0,0.00025063,2]
[376915961,1754164239504,-500.0,0.00025063,2]
[376915963,1754164239513,-500.0,0.00025063,2]
[376915965,1754164239523,-500.0,0.00025063,2]
[376915967,1754164239533,-500.0,0.00025063,2]
[376915969,1754164239542,-500.0,0.00025063,2]
[376915971,1754164239552,-500.0,0.00025063,2]
[376915973,1754164239563,-500.0,0.00025063,2]
[376915975,1754164239573,-250.0,0.00025063,2]
[376915977,1754164239582,-500.0,0.00025063,2]
[376915979,1754164239591,-500.0,0.00025063,2]
[376915981,1754164239600,-500.0,0.00025063,2]
[376915983,1754164239609,-500.0,0.00025063,2]
[376915985,1754164239618,-500.0,0.00025063,2]
[376915987,1754164239628,-500.0,0.00025063,2]
[376915989,1754164239637,-500.0,0.00025063,2]
[376915991,1754164239646,-500.0,0.00025063,2]
[376915993,1754164239655,-500.0,0.00025063,2]
[376915994,1754164239664,-500.0,0.00025063,2]
[376915996,1754164239673,-500.0,0.00025063,2]
[376915998,1754164239682,-500.0,0.00025063,2]
[376916000,1754164239691,-500.0,0.00025063,2]
[376916002,1754164239700,-500.0,0.00025063,2]
[376916004,1754164239709,-500.0,0.00025063,2]
[376916006,1754164239718,-500.0,0.00025063,2]
[376916008,1754164239729,-500.0,0.00025063,2]
[376916010,1754164239738,-500.0,0.00025063,2]
[376916012,1754164239748,-500.0,0.00025063,2]
[376916014,1754164239757,-500.0,0.00025063,2]
[376916016,1754164239766,-500.0,0.00025063,2]
[376916018,1754164239775,-500.0,0.00025063,2]
[376916020,1754164239784,-500.0,0.00025066,2]
[376916022,1754164239793,-153.52,0.00025067,7]
[376916024,1754164239802,-500.0,0.00025073,2]
[376916026,1754164239812,-500.0,0.00025073,2]
[376916028,1754164239823,-509.34255468,0.00025073,2]
[376916030,1754164239833,-500.0,0.00025073,2]
[376916032,1754164239842,-500.0,0.00025073,2]
[376916034,1754164239851,-500.0,0.00025073,2]
[376916036,1754164239860,-500.0,0.00025073,2]
[376916038,1754164239870,-500.0,0.00025073,2]
[376916040,1754164239878,-286.02,0.0002511,2]
[376916042,1754164239887,-153.52,0.00025167,7]
[376916044,1754164239896,-153.52,0.00025267,7]
[376916046,1754164239905,-153.52,0.00025367,7]
[376916048,1754164239914,-447.0,0.00025389,2]
[376916051,1754164239923,-153.52,0.00025467,7]
[376916054,1754164239932,-153.52,0.00025567,7]
[376916057,1754164239941,-160.0,0.00025619,2]
[376916060,1754164239950,-500.0,0.00025621,2]
[376916063,1754164239959,-500.0,0.00025621,2]
[376916066,1754164239968,-500.0,0.00025621,2]
[376916069,1754164239977,-500.0,0.00025621,2]
[376916072,1754164239987,-619.03926669,0.0002565,2]
[376916075,1754164239996,-666.0,0.00025657,2]
[376916078,1754164240006,-153.52,0.00025667,7]
[376916082,1754164240015,-501.01943038,0.00025673,2]
[376916084,1754164240029,-153.52,0.00025767,7]
[376916087,1754164240038,-160.0,0.00025853,2]
[376916090,1754164240048,-2572.7230458,0.00025859,2]
[376916093,1754164240057,-460.0,0.00025859,2]
[376916095,1754164240067,-460.0,0.00025859,2]
[376916098,1754164240076,-153.52,0.00025867,7]
[376916101,1754164240085,-160.2170531,0.0002593,2]
[376916104,1754164240095,-160.2170531,0.0002593,2]
[376916108,1754164240105,-1156.1555658,0.0002593,2]
[376916111,1754164240115,-178.563763,0.0002593,2]
[376916114,1754164240125,-178.563763,0.0002593,2]
[376916117,1754164240134,-160.2170531,0.0002593,2]
[376916120,1754164240143,-153.54,0.00025967,7]
[376916140,1754164240257,-505.44698061,0.00025973,2]
[376916142,1754164240268,-500.0,0.00025973,2]
[376916144,1754164240278,-500.0,0.00025973,2]
[376916146,1754164240287,-500.0,0.00025973,2]
[376916148,1754164240297,-500.0,0.00025973,2]
[376916149,1754164240306,-500.0,0.00025973,2]
[376916150,1754164240316,-500.0,0.00025973,2]
[376916151,1754164240326,-500.0,0.00025973,2]
[376916153,1754164240335,-500.0,0.00025973,2]
[376916155,1754164240344,-500.0,0.00025973,2]
[376916156,1754164240353,-500.0,0.00025973,2]
[376916158,1754164240363,-500.91526166,0.00025973,2]
[376916159,1754164240373,-500.0,0.00025973,2]
[376916160,1754164240383,-500.0,0.00025973,2]
[376916161,1754164240393,-500.0,0.00025973,2]
[376916162,1754164240402,-501.36113289,0.00025973,2]
[376916163,1754164240411,-444.29271676,0.00025973,2]
[376916164,1754164240420,-502.18917638,0.00025973,2]
[376916165,1754164240430,-500.0,0.00025973,2]
[376916166,1754164240439,-502.08470282,0.00025973,2]
[376916167,1754164240448,-503.10716674,0.00025973,2]
[376916168,1754164240458,-500.99632607,0.00025973,2]
[376916169,1754164240467,-501.6212616,0.00025973,2]
[376916170,1754164240476,-501.47711692,0.00025973,2]
[376916171,1754164240488,-500.0,0.00025973,2]
[376916172,1754164240497,-500.0,0.00025973,2]
[376916173,1754164240506,-500.0,0.00025973,2]
[376916174,1754164240515,-500.78757145,0.00025973,2]
[376916175,1754164240524,-173.22468161,0.00025973,2]
[376916176,1754164240534,-189.10768309,0.00025973,2]
[376916177,1754164240543,-503.59060838,0.00025973,2]
[376916178,1754164240552,-502.72224349,0.00025973,2]
[376916179,1754164240563,-520.37902995,0.00025973,2]
[376916180,1754164240573,-500.0,0.00025973,2]
[376916181,1754164240582,-151.0,0.00025974,2]
[376916182,1754164240591,-151.0,0.00025974,2]
[376916183,1754164240600,-500.0,0.00025974,2]
[376916184,1754164240609,-151.0,0.00025974,2]
[376916185,1754164240618,-70023.85813798,0.0002599,2]
[376916186,1754164240627,-161.318637,0.00026027,2]
[376916187,1754164240637,-174.74273342,0.00026189,2]
[376916188,1754164240646,-163.255368,0.00026312,10]
[376916189,1754164240655,-1000.0,0.00026521,2]
[376916190,1754164240664,-3799.6143569,0.00026652,2]
[376916191,1754164240673,-200.0,0.00026665,15]
[376916192,1754164240682,-200.0,0.00026665,15]
[376916193,1754164240692,-300.0,0.00026665,15]
[376916194,1754164240701,-1324.06242591,0.00026714,2]
[376916195,1754164240710,-296.40603492,0.00026748,2]
[376916196,1754164240719,-359661.27523802,0.00026749,2]
[376916197,1754164240729,-160.2170531,0.00026751,2]
[376916198,1754164240738,-178.563763,0.00026751,2]
[376916199,1754164240748,-178.563763,0.00026751,2]
[376916200,1754164240757,-178.563763,0.00026751,2]
[376916201,1754164240766,-178.563763,0.00026751,2]
[376916202,1754164240775,-178.563763,0.00026751,2]
[376916203,1754164240784,-178.563763,0.00026751,2]
[376916204,1754164240794,-178.563763,0.00026751,2]
[376916205,1754164240803,-178.563763,0.00026751,2]
[376916206,1754164240812,-178.563763,0.00026751,2]
[376916207,1754164240821,-176.2362166,0.00026751,2]
[376916208,1754164240830,-500.66252856,0.00026773,2]
[376916209,1754164240839,-500.36574572,0.00026773,2]
[376916210,1754164240849,-500.0,0.00026773,2]